fUSD/lending_fUSD_20250314
["ID","MTS","AMOUNT","RATE_DAILY","PERIOD"]
[356150508,1741972755795,199.21,9.069e-05,2]
[356150509,1741972817467,1000.0,9.061e-05,2]
[356150510,1741973066576,609.9,9.035e-05,2]
[356150511,1741973066777,609.9,9.059e-05,2]
[356150512,1741973067009,609.9,9.083e-05,2]
[356150513,1741973067430,609.9,9.106e-05,2]
[356150514,1741973067660,609.9,9.13e-05,2]
[356150515,1741973067880,609.9,9.154e-05,2]
[356150516,1741973068309,609.9,9.178e-05,2]
[356150517,1741973068548,14.72192711,9.201e-05,2]
[356150518,1741973068570,595.17807289,9.201e-05,2]
[356150519,1741973068809,609.9,9.225e-05,2]
[356150520,1741973069025,609.9,9.249e-05,2]
[356150521,1741973069230,609.9,9.273e-05,2]
[356150522,1741973069446,609.9,9.297e-05,2]
[356150523,1741973069648,609.9,9.32e-05,2]
[356150524,1741973070059,609.9,9.344e-05,2]
[356150525,1741973070301,609.9,9.368e-05,2]
[356150526,1741973070736,609.9,9.392e-05,2]
[356150527,1741973070971,609.9,9.415e-05,2]
[356150528,1741973071253,609.9,9.439e-05,2]
[356150529,1741973071486,609.9,9.463e-05,2]
[356150530,1741973071696,609.9,9.487e-05,2]
[356150531,1741973166670,2086.02192711,8e-05,2]
[356150532,1741973166708,6865.25941181,8e-05,2]
[356150534,1741973197713,173.43,9.299e-05,2]
[356150535,1741973202570,250.0,9.028e-05,2]
[356150536,1741973221441,154.41,9.027e-05,2]
[356150537,1741973233807,600.0,9.4e-05,3]
[356150538,1741973235915,1200.0,9.5e-05,3]
[356150539,1741973251436,756.90058819,8.994e-05,2]
[356150540,1741973251459,439.53941181,8.994e-05,2]
[356150553,1741973339027,717.76,9.041e-05,2]
[356150561,1741973392910,1009.75,8.979e-05,2]
[356150562,1741973399967,169.29,8.993e-05,2]
[356150584,1741973431875,-481.36,9.6e-05,3]
[356150585,1741973431889,-1318.64,9.6e-05,3]
[356150586,1741973431899,-150.0,9.605e-05,2]
[356150587,1741973431909,-184.85835618,9.61e-05,2]
[356150588,1741973431919,-168.26989088,9.632e-05,2]
[356150589,1741973431929,-183.0,9.643e-05,2]
[356150590,1741973431939,-2400.0,9.7e-05,3]
[356150591,1741973431950,-3000.0,9.8e-05,3]
[356150592,1741973431960,-173.43,9.811e-05,2]
[356150593,1741973431969,-3745.1179,9.88e-05,2]
[356150594,1741973431979,-150.0,9.896e-05,2]
[356150595,1741973431988,-500.0,9.897e-05,2]
[356150596,1741973431998,-298.7217127,9.897e-05,2]
[356150597,1741973432008,-2326.51,9.897e-05,2]
[356150598,1741973432018,-999.99,9.897e-05,2]
[356150599,1741973432028,-1111.74,9.897e-05,2]
[356150600,1741973432037,-9999.99,9.897e-05,2]
[356150601,1741973432047,-2500.0,9.898e-05,2]
[356150602,1741973432057,-88889.72419884,9.898e-05,2]
[356150603,1741973432069,-1498.37856869,9.898e-05,2]
[356150604,1741973432080,-768.41833573,9.898e-05,2]
[356150605,1741973432092,-1622.82893325,9.898e-05,2]
[356150606,1741973432104,-353.6592317,9.898e-05,2]
[356150607,1741973432116,-8532.66073179,9.898e-05,2]
[356150608,1741973432125,-3671.8,9.898e-05,2]
[356150609,1741973432135,-150.99,9.898e-05,2]
[356150610,1741973432145,-875.21,9.899e-05,2]
[356150611,1741973432155,-1720.85,9.899e-05,2]
[356150612,1741973432165,-150.99,9.899e-05,2]
[356150613,1741973432175,-1524.55,9.899e-05,2]
[356150614,1741973432185,-166.49,9.899e-05,2]
[356150615,1741973432194,-4554.1166,9.9e-05,2]
[356150617,1741973432203,-3984.2342,9.9e-05,2]
[356150619,1741973432212,-600.0,9.9e-05,3]
[356150620,1741973432222,-10073.07790116,9.968e-05,2]
[356150622,1741973432231,-41170.99073236,9.978e-05,2]
[356150624,1741973432241,-204.51664334,9.979e-05,2]
[356150627,1741973432251,-225588.63935534,9.98e-05,2]
[356150674,1741973437929,-2067.21978566,9.978e-05,2]
[356150675,1741973437941,-272.0,9.978e-05,2]
[356150732,1741973439949,-99.13213443,9.978e-05,2]
[356150733,1741973439959,-229.73591761,9.98e-05,2]
[356150734,1741973439971,-4559.689305,9.98e-05,2]
[356150751,1741973440537,-7555.95484982,9.98e-05,2]
[356150753,1741973440549,-601.97702826,9.98e-05,2]
[356150765,1741973442929,-1012.36414773,9.78e-05,2]
[356150766,1741973442940,-286914.79485224,9.98e-05,2]
[356150771,1741973482527,1230.34,8.219e-05,2]
[356150772,1741973538492,5742.38,9.539e-05,2]
[356150773,1741973803884,250.0,9e-05,2]
[356150774,1741974069763,440.94058819,9.55e-05,2]
[356150775,1741974069784,559.05941181,9.55e-05,2]
[356150776,1741974242714,166.66,9.139e-05,2]
[356150777,1741974274016,250.0,8.873e-05,2]
[356150785,1741974449445,300.0,9.4e-05,3]
[356150786,1741974451160,600.0,9.5e-05,3]
[356150787,1741974567076,1313.35,8.219e-05,2]
[356150788,1741974570408,358.88,8.871e-05,2]
[356150817,1741974632090,-567.63851614,9.6e-05,3]
[356150818,1741974632103,-432.36148386,9.6e-05,3]
[356150819,1741974632113,-871.7155516,9.7e-05,3]
[356150820,1741974632146,-428.2844484,9.7e-05,3]
[356150821,1741974632156,-150.0,9.726e-05,2]
[356150822,1741974632166,-150.0,9.726e-05,2]
[356150823,1741974632176,-150.0,9.728e-05,2]
[356150824,1741974632186,-150.0,9.729e-05,2]
[356150825,1741974632197,-150.0,9.739e-05,2]
[356150826,1741974632206,-150.0,9.742e-05,2]
[356150827,1741974632216,-150.0,9.742e-05,2]
[356150828,1741974632228,-150.0,9.742e-05,2]
[356150829,1741974632238,-150.0,9.746e-05,2]
[356150830,1741974632247,-150.0,9.748e-05,2]
[356150831,1741974632257,-144.03817482,9.748e-05,2]
[356150832,1741974632269,-206.81182518,9.748e-05,2]
[356150833,1741974632280,-277.0272374,9.748e-05,2]
[356150834,1741974632292,-419.22518436,9.748e-05,2]
[356150835,1741974632304,-757.95757824,9.748e-05,2]
[356150836,1741974632313,-473.99,9.748e-05,2]
[356150837,1741974632323,-314.04,9.748e-05,2]
[356150838,1741974632332,-150.0,9.749e-05,2]
[356150839,1741974632342,-150.0,9.753e-05,2]
[356150840,1741974632351,-150.0,9.753e-05,2]
[356150841,1741974632361,-150.0,9.753e-05,2]
[356150842,1741974632371,-150.0,9.756e-05,2]
[356150843,1741974632380,-154.91361423,9.758e-05,2]
[356150844,1741974632389,-448.34,9.76e-05,2]
[356150845,1741974632398,-1000.0,9.761e-05,2]
[356150846,1741974632408,-150.0,9.765e-05,2]
[356150847,1741974632417,-150.0,9.766e-05,2]
[356150849,1741974632427,-150.0,9.767e-05,2]
[356150851,1741974632436,-58.0268093,9.767e-05,2]
[356150878,1741974633150,-91.9731907,9.767e-05,2]
[356150879,1741974633159,-150.0,9.771e-05,2]
[356150880,1741974633168,-150.0,9.776e-05,2]
[356150881,1741974633178,-1000.0,9.778e-05,2]
[356150882,1741974633188,-150.41,9.78e-05,2]
[356150883,1741974633198,-1392.43976216,9.78e-05,2]
[356150884,1741974633208,-150.0,9.784e-05,2]
[356150885,1741974633218,-150.0,9.789e-05,2]
[356150886,1741974633227,-150.0,9.789e-05,2]
[356150887,1741974633236,-150.0,9.792e-05,2]
[356150888,1741974633245,-150.0,9.796e-05,2]
[356150889,1741974633255,-1000.0,9.797e-05,2]
[356150890,1741974633265,-150.0,9.799e-05,2]
[356150891,1741974633274,-150.0,9.799e-05,2]
[356150892,1741974633283,-1000.0,9.8e-05,2]
[356150893,1741974633292,-1700.0,9.8e-05,3]
[356150894,1741974633301,-150.0,9.803e-05,2]
[356150895,1741974633310,-1000.0,9.803e-05,2]
[356150896,1741974633318,-150.0,9.807e-05,2]
[356150897,1741974633327,-150.0,9.808e-05,2]
[356150898,1741974633336,-150.0,9.81e-05,2]
[356150899,1741974633345,-150.0,9.813e-05,2]
[356150900,1741974633355,-1000.0,9.814e-05,2]
[356150901,1741974633365,-150.0,9.815e-05,2]
[356150902,1741974633375,-1000.0,9.818e-05,2]
[356150903,1741974633384,-150.0,9.819e-05,2]
[356150904,1741974633393,-150.0,9.819e-05,2]
[356150905,1741974633404,-150.0,9.821e-05,2]
[356150906,1741974633414,-1000.0,9.824e-05,2]
[356150907,1741974633423,-1000.0,9.825e-05,2]
[356150908,1741974633433,-150.0,9.826e-05,2]
[356150909,1741974633443,-322.00234117,9.826e-05,2]
[356150910,1741974633453,-150.0,9.827e-05,2]
[356150911,1741974633463,-150.0,9.831e-05,2]
[356150912,1741974633472,-1000.0,9.831e-05,2]
[356150913,1741974633482,-150.0,9.833e-05,2]
[356150914,1741974633491,-1000.0,9.839e-05,2]
[356150915,1741974633500,-150.0,9.839e-05,2]
[356150916,1741974633510,-270.98555699,9.841e-05,2]
[356150917,1741974633519,-1000.0,9.843e-05,2]
[356150918,1741974633529,-150.0,9.846e-05,2]
[356150919,1741974633539,-150.0,9.855e-05,2]
[356150920,1741974633548,-1000.0,9.855e-05,2]
[356150921,1741974633558,-150.0,9.856e-05,2]
[356150922,1741974633567,-150.0,9.857e-05,2]
[356150923,1741974633577,-150.0,9.857e-05,2]
[356150924,1741974633586,-150.0,9.859e-05,2]
[356150925,1741974633595,-150.0,9.863e-05,2]
[356150926,1741974633604,-150.0,9.866e-05,2]
[356150927,1741974633614,-150.0,9.868e-05,2]
[356150928,1741974633623,-150.0,9.873e-05,2]
[356150929,1741974633633,-150.0,9.873e-05,2]
[356150930,1741974633642,-150.0,9.877e-05,2]
[356150931,1741974633651,-1000.0,9.879e-05,2]
[356150932,1741974633662,-1519.218,9.88e-05,2]
[356150933,1741974633672,-150.0,9.881e-05,2]
[356150934,1741974633681,-1000.0,9.882e-05,2]
[356150935,1741974633691,-150.0,9.885e-05,2]
[356150936,1741974633700,-150.0,9.887e-05,2]
[356150937,1741974633710,-1000.0,9.889e-05,2]
[356150938,1741974633719,-150.0,9.893e-05,2]
[356150939,1741974633728,-150.0,9.894e-05,2]
[356150940,1741974633738,-150.0,9.895e-05,2]
[356150941,1741974633747,-150.0,9.895e-05,2]
[356150942,1741974633756,-9087.17114241,9.9e-05,2]
[356150943,1741974633765,-300.0,9.9e-05,3]
[356150944,1741974633775,-150.0,9.903e-05,2]
[356150945,1741974633784,-150.0,9.903e-05,2]
[356150946,1741974633793,-150.0,9.904e-05,2]
[356150947,1741974633803,-150.0,9.905e-05,2]
[356150948,1741974633812,-150.0,9.906e-05,2]
[356150949,1741974633821,-150.0,9.906e-05,2]
[356150950,1741974633831,-150.0,9.908e-05,2]
[356150951,1741974633840,-1000.0,9.908e-05,2]
[356150952,1741974633850,-150.0,9.914e-05,2]
[356150953,1741974633863,-150.0,9.916e-05,2]
[356150954,1741974633872,-150.0,9.921e-05,2]
[356150955,1741974633881,-150.0,9.927e-05,2]
[356150956,1741974633891,-150.0,9.927e-05,2]
[356150957,1741974633900,-150.0,9.927e-05,2]
[356150958,1741974633909,-150.0,9.931e-05,2]
[356150959,1741974633919,-150.0,9.932e-05,2]
[356150960,1741974633928,-1000.0,9.938e-05,2]
[356150961,1741974633941,-150.0,9.939e-05,2]
[356150962,1741974633951,-150.0,9.941e-05,2]
[356150963,1741974633961,-150.0,9.942e-05,2]
[356150964,1741974633970,-150.0,9.942e-05,2]
[356150965,1741974633979,-150.0,9.943e-05,2]
[356150966,1741974633989,-150.0,9.943e-05,2]
[356150967,1741974633998,-150.0,9.944e-05,2]
[356150968,1741974634007,-1000.0,9.944e-05,2]
[356150969,1741974634017,-150.0,9.945e-05,2]
[356150970,1741974634028,-150.0,9.946e-05,2]
[356150971,1741974634037,-150.0,9.948e-05,2]
[356150972,1741974634047,-150.0,9.952e-05,2]
[356150973,1741974634056,-150.0,9.958e-05,2]
[356150974,1741974634066,-150.0,9.959e-05,2]
[356150975,1741974634076,-150.0,9.961e-05,2]
[356150976,1741974634086,-150.0,9.964e-05,2]
[356150977,1741974634096,-150.0,9.965e-05,2]
[356150978,1741974634106,-150.0,9.969e-05,2]
[356150979,1741974634115,-150.0,9.97e-05,2]
[356150980,1741974634125,-150.0,9.972e-05,2]
[356150981,1741974634134,-150.0,9.976e-05,2]
[356150982,1741974634143,-150.0,9.977e-05,2]
[356150983,1741974634152,-150.0,9.978e-05,2]
[356150984,1741974634162,-1000.0,9.978e-05,2]
[356150985,1741974634172,-500.0,9.979e-05,2]
[356150986,1741974634181,-2159.149,9.979e-05,2]
[356150987,1741974634191,-175.82,9.979e-05,2]
[356150988,1741974634201,-71871.70342196,9.98e-05,2]
[356150989,1741974634214,-2959.99147724,9.98e-05,2]
[356150990,1741974634244,-840.0,9.98e-05,2]
[356150991,1741974634256,-320.29041264,9.98e-05,2]
[356150997,1741974637995,-15733.2,9.98e-05,2]
[356150998,1741974638052,-2545.50539138,9.98e-05,2]
[356150999,1741974638064,-12000.00000135,9.98e-05,2]
[356151000,1741974638107,-978.85,9.98e-05,2]
[356151008,1741974640139,-900.72,9.88e-05,2]
[356151009,1741974640194,-99.28,9.88e-05,2]
[356151010,1741974640205,-1338.7247324,9.98e-05,2]
[356151011,1741974640216,-1193.5808724,9.98e-05,2]
[356151012,1741974640248,-639.1,9.98e-05,2]
[356151013,1741974640259,-395.395,9.98e-05,2]
[356151014,1741974640409,-10384.07962742,9.98e-05,2]
[356151015,1741974640464,-300.75060262,9.98e-05,2]
[356151016,1741974640519,-525250.23120371,9.98e-05,2]
[356151017,1741974640529,-200.0,9.98e-05,2]
[356151018,1741974640539,-156.0,9.98e-05,2]
[356151019,1741974640549,-168.0,9.98e-05,2]
[356151020,1741974640558,-166.64087532,9.98e-05,2]
[356151021,1741974640568,-156.0,9.98e-05,2]
[356151022,1741974640578,-156.0,9.98e-05,2]
[356151023,1741974640588,-256.32666239,9.98e-05,2]
[356151024,1741974640598,-156.0,9.98e-05,3]
[356151025,1741974640607,-200.0,9.98e-05,2]
[356151026,1741974640617,-150.0,9.987e-05,2]
[356151027,1741974640627,-150.0,9.988e-05,2]
[356151028,1741974640637,-150.0,9.99e-05,2]
[356151029,1741974640646,-271.2,9.99e-05,2]
[356151030,1741974640656,-150.0,9.994e-05,2]
[356151031,1741974640665,-646.3794219,9.996e-05,2]
[356151032,1741974640676,-2707.8625054,9.996e-05,2]
[356151034,1741974640686,-2305.4267374,9.996e-05,2]
[356151036,1741974640695,-1687.5102676,9.996e-05,2]
[356151038,1741974640706,-10118.618097,9.996e-05,2]
[356151039,1741974640715,-1012.0,9.996e-05,2]
[356151040,1741974640726,-151.0,9.996e-05,2]
[356151041,1741974640735,-200.0,9.996e-05,2]
[356151043,1741974640745,-3932.0,9.996e-05,2]
[356151045,1741974640755,-1113.0,9.996e-05,2]
[356151047,1741974640765,-1000.0,9.997e-05,2]
[356151049,1741974640774,-2498.37,9.999e-05,2]
[356151050,1741974640784,-194.05443836,9.999e-05,2]
[356151051,1741974640794,-731.0,0.0001,2]
[356151052,1741974640803,-1219.17596004,0.0001,2]
[356151053,1741974640812,-291020.57271714,0.0001,2]
[356151054,1741974640822,-1300.0,0.0001,2]
[356151055,1741974640832,-7794458.40644174,0.0001,2]
[356151056,1741974640841,-478.4923068,0.0001,2]
[356151057,1741974640855,-1148.29363079,0.0001,2]
[356151058,1741974640864,-611747.7562637,0.0001,2]
[356151059,1741974640874,-250.0,0.0001,2]
[356151060,1741974640883,-250.0,0.0001,2]
[356151061,1741974640893,-250.0,0.0001,2]
[356151062,1741974640903,-250.0,0.0001,2]
[356151063,1741974640912,-250.0,0.0001,2]
[356151064,1741974640922,-250.0,0.0001,2]
[356151065,1741974640933,-250.0,0.0001,2]
[356151066,1741974640943,-250.0,0.0001,2]
[356151067,1741974640954,-250.0,0.0001,2]
[356151068,1741974640964,-250.0,0.0001,2]
[356151069,1741974640974,-250.0,0.0001,2]
[356151070,1741974640984,-250.0,0.0001,2]
[356151071,1741974640994,-250.0,0.0001,2]
[356151072,1741974641004,-250.0,0.0001,2]
[356151073,1741974641014,-306.6,0.0001,2]
[356151074,1741974641024,-64642.24952855,0.0001,2]
[356151075,1741974641035,-615.18,0.0001,2]
[356151076,1741974641045,-151.0,0.0001,2]
[356151077,1741974641055,-151.0,0.0001,2]
[356151078,1741974641064,-281.869838,0.0001,2]
[356151079,1741974641074,-281.869838,0.0001,2]
[356151080,1741974641084,-281.869838,0.0001,2]
[356151081,1741974641094,-281.869838,0.0001,2]
[356151082,1741974641104,-1541235.31137709,0.0001,2]
[356151083,1741974641114,-151.0,0.0001,2]
[356151084,1741974641123,-151.0,0.0001,2]
[356151085,1741974641133,-151.0,0.0001,2]
[356151086,1741974641143,-151.0,0.0001,2]
[356151087,1741974641153,-198.006088,0.0001,2]
[356151088,1741974641164,-151.0,0.0001,2]
[356151089,1741974641173,-151.0,0.0001,2]
[356151090,1741974641183,-151.0,0.0001,2]
[356151091,1741974641193,-153.942792,0.0001,2]
[356151092,1741974641203,-151.394496,0.0001,2]
[356151093,1741974641213,-151.0,0.0001,2]
[356151094,1741974641222,-151.0,0.0001,2]
[356151095,1741974641231,-151.0,0.0001,2]
[356151096,1741974641242,-152.8119,0.0001,2]
[356151097,1741974641252,-2781.4617898,0.0001,2]
[356151098,1741974641262,-152.756134,0.0001,2]
[356151099,1741974641271,-151.0,0.0001,2]
[356151100,1741974641280,-151.0,0.0001,2]
[356151101,1741974641290,-151.0,0.0001,2]
[356151102,1741974641299,-151.0,0.0001,2]
[356151103,1741974641309,-151.0,0.0001,2]
[356151104,1741974641318,-151.0,0.0001,2]
[356151105,1741974641328,-151.0,0.0001,2]
[356151106,1741974641337,-151.0,0.0001,2]
[356151107,1741974641347,-151.0,0.0001,2]
[356151108,1741974641356,-151.0,0.0001,2]
[356151109,1741974641595,-151.0,0.0001,2]
[356151110,1741974641605,-151.0,0.0001,2]
[356151111,1741974641615,-151.0,0.0001,2]
[356151112,1741974641626,-151.0,0.0001,2]
[356151113,1741974641636,-213.376873,0.0001,2]
[356151114,1741974641645,-151.0,0.0001,2]
[356151115,1741974641654,-151.554017,0.0001,2]
[356151116,1741974641664,-153.22342,0.0001,2]
[356151117,1741974641674,-151.0,0.0001,2]
[356151118,1741974641684,-152.209498,0.0001,2]
[356151119,1741974641694,-200.0,0.0001,2]
[356151120,1741974641711,-151.471342,0.0001,2]
[356151121,1741974641720,-151.0,0.0001,2]
[356151122,1741974641730,-151.0,0.0001,2]
[356151123,1741974641740,-152.159975,0.0001,2]
[356151124,1741974641749,-150.0,0.0001,2]
[356151125,1741974641759,-151.0,0.0001,2]
[356151126,1741974641768,-203.133735,0.0001,2]
[356151127,1741974641778,-151.0,0.0001,2]
[356151128,1741974641788,-151.0,0.0001,2]
[356151129,1741974641797,-151.0,0.0001,2]
[356151130,1741974641808,-151.0,0.0001,2]
[356151131,1741974641817,-396.048925,0.0001,2]
[356151132,1741974641827,-396.048925,0.0001,2]
[356151133,1741974641838,-203.51,0.0001,2]
[356151134,1741974641848,-396.048925,0.0001,2]
[356151135,1741974641859,-396.048925,0.0001,2]
[356151136,1741974641869,-151.0,0.0001,2]
[356151137,1741974641878,-151.0,0.0001,2]
[356151138,1741974641887,-151.0,0.0001,2]
[356151139,1741974641899,-151.209053,0.0001,2]
[356151140,1741974641908,-1789.72164797,0.0001,2]
[356151141,1741974641918,-151.0,0.0001,2]
[356151142,1741974641928,-151.0,0.0001,2]
[356151143,1741974641939,-202.11331,0.0001,2]
[356151144,1741974641953,-202.11331,0.0001,2]
[356151145,1741974641962,-202.11331,0.0001,2]
[356151146,1741974641972,-202.11331,0.0001,2]
[356151147,1741974641981,-202.11331,0.0001,2]
[356151148,1741974641991,-202.11331,0.0001,2]
[356151149,1741974642000,-225541.0,0.0001,2]
[356151150,1741974642010,-200.0,0.0001,2]
[356151151,1741974642019,-151.0,0.0001,2]
[356151152,1741974642028,-151.0,0.0001,2]
[356151153,1741974642038,-151.752503,0.0001,2]
[356151154,1741974642047,-151.0,0.0001,2]
[356151155,1741974642057,-301.236634,0.0001,2]
[356151156,1741974642067,-153.498634,0.0001,2]
[356151157,1741974642076,-151.0,0.0001,2]
[356151158,1741974642085,-151.0,0.0001,2]
[356151159,1741974642095,-151.0,0.0001,2]
[356151160,1741974642105,-151.0,0.0001,2]
[356151161,1741974642115,-151.0,0.0001,2]
[356151162,1741974642126,-151.0,0.0001,2]
[356151163,1741974642135,-151.0,0.0001,2]
[356151164,1741974642146,-151.0,0.0001,2]
[356151165,1741974642156,-151.0,0.0001,2]
[356151166,1741974642166,-151.0,0.0001,2]
[356151167,1741974642177,-151.0,0.0001,2]
[356151168,1741974642186,-151.0,0.0001,2]
[356151169,1741974642196,-151.0,0.0001,2]
[356151170,1741974642211,-151.0,0.0001,2]
[356151171,1741974642221,-151.0,0.0001,2]
[356151172,1741974642231,-151.0,0.0001,2]
[356151173,1741974642241,-151.0,0.0001,2]
[356151174,1741974642251,-151.0,0.0001,2]
[356151175,1741974642261,-151.0,0.0001,2]
[356151176,1741974642271,-151.0,0.0001,2]
[356151177,1741974642281,-151.0,0.0001,2]
[356151178,1741974642290,-151.0,0.0001,2]
[356151179,1741974642300,-151.0,0.0001,2]
[356151180,1741974642310,-151.0,0.0001,2]
[356151181,1741974642319,-151.0,0.0001,2]
[356151182,1741974642328,-151.0,0.0001,2]
[356151183,1741974642338,-151.0,0.0001,2]
[356151184,1741974642347,-151.0,0.0001,2]
[356151185,1741974642357,-151.0,0.0001,2]
[356151186,1741974642367,-151.0,0.0001,2]
[356151187,1741974642377,-151.0,0.0001,2]
[356151188,1741974642386,-151.0,0.0001,2]
[356151189,1741974642395,-151.0,0.0001,2]
[356151190,1741974642405,-151.0,0.0001,2]
[356151191,1741974642415,-151.0,0.0001,2]
[356151192,1741974642424,-151.0,0.0001,2]
[356151193,1741974642434,-151.0,0.0001,2]
[356151194,1741974642443,-151.0,0.0001,2]
[356151195,1741974642455,-151.0,0.0001,2]
[356151196,1741974642466,-151.0,0.0001,2]
[356151197,1741974642476,-151.0,0.0001,2]
[356151198,1741974642485,-151.0,0.0001,2]
[356151199,1741974642495,-151.0,0.0001,2]
[356151200,1741974642505,-151.0,0.0001,2]
[356151201,1741974642515,-151.0,0.0001,2]
[356151202,1741974642524,-151.0,0.0001,2]
[356151203,1741974642534,-151.0,0.0001,2]
[356151204,1741974642543,-151.0,0.0001,2]
[356151205,1741974642552,-151.0,0.0001,2]
[356151206,1741974642562,-151.0,0.0001,2]
[356151207,1741974642572,-151.0,0.0001,2]
[356151208,1741974642582,-151.0,0.0001,2]
[356151209,1741974642591,-151.0,0.0001,2]
[356151210,1741974642600,-151.0,0.0001,2]
[356151211,1741974642609,-151.0,0.0001,2]
[356151212,1741974642619,-151.0,0.0001,2]
[356151213,1741974642628,-151.0,0.0001,2]
[356151214,1741974642638,-151.0,0.0001,2]
[356151215,1741974642647,-151.0,0.0001,2]
[356151216,1741974642656,-151.0,0.0001,2]
[356151217,1741974642666,-151.0,0.0001,2]
[356151218,1741974642675,-204.552835,0.0001,2]
[356151219,1741974642685,-151.0,0.0001,2]
[356151220,1741974642694,-151.0,0.0001,2]
[356151221,1741974642704,-151.0,0.0001,2]
[356151222,1741974642715,-152.001912,0.0001,2]
[356151223,1741974642724,-151.0,0.0001,2]
[356151224,1741974642733,-151.0,0.0001,2]
[356151225,1741974642743,-151.0,0.0001,2]
[356151226,1741974642752,-163.397605,0.0001,2]
[356151227,1741974642762,-163.397605,0.0001,2]
[356151228,1741974642771,-163.397605,0.0001,2]
[356151229,1741974642780,-163.397605,0.0001,2]
[356151230,1741974642790,-298.5756,0.0001,2]
[356151232,1741974642799,-836.18038,0.0001,2]
[356151233,1741974642808,-298.5756,0.0001,2]
[356151235,1741974642818,-298.5756,0.0001,2]
[356151237,1741974642827,-836.18038,0.0001,2]
[356151238,1741974642836,-836.18038,0.0001,2]
[356151239,1741974642845,-298.5756,0.0001,2]
[356151240,1741974642858,-151.0,0.0001,2]
[356151241,1741974642867,-151.0,0.0001,2]
[356151242,1741974642877,-298.5756,0.0001,2]
[356151243,1741974642886,-836.18038,0.0001,2]
[356151244,1741974642896,-151.0,0.0001,2]
[356151245,1741974642907,-298.5756,0.0001,2]
[356151246,1741974642916,-836.18038,0.0001,2]
[356151249,1741974642925,-836.18038,0.0001,2]
[356151252,1741974642936,-151.0,0.0001,2]
[356151253,1741974642946,-151.0,0.0001,2]
[356151256,1741974642956,-272.410329,0.0001,2]
[356151258,1741974642965,-151.0,0.0001,2]
[356151259,1741974642974,-151.0,0.0001,2]
[356151261,1741974642983,-160.486972,0.0001,2]
[356151263,1741974642992,-151.0,0.0001,2]
[356151265,1741974643002,-151.0,0.0001,2]
[356151266,1741974643011,-151.0,0.0001,2]
[356151267,1741974643020,-151.0,0.0001,2]
[356151268,1741974643030,-151.0,0.0001,2]
[356151269,1741974643040,-151.0,0.0001,2]
[356151270,1741974643049,-202.595178,0.0001,2]
[356151272,1741974643059,-151.408942,0.0001,2]
[356151274,1741974643069,-258.723896,0.0001,2]
[356151276,1741974643079,-151.0,0.0001,2]
[356151278,1741974643088,-151.0,0.0001,2]
[356151280,1741974643097,-151.0,0.0001,2]
[356151281,1741974643107,-151.0,0.0001,2]
[356151282,1741974643117,-151.0,0.0001,2]
[356151283,1741974643126,-151.0,0.0001,2]
[356151284,1741974643135,-151.0,0.0001,2]
[356151285,1741974643144,-4000.0,0.0001,2]
[356151286,1741974643154,-4000.0,0.0001,2]
[356151287,1741974643163,-1761.053126,0.0001,2]
[356151288,1741974643172,-1761.053126,0.0001,2]